[Event "Late-Titled-Tuesday-Blitz-May-28-2024"]
[Site "Chess.com"]
[Date "2024.05.28"]
[Round "6"]
[White "andrew-blr"]
[Black "Balla_Tamas"]
[Result "1-0"]
[WhiteElo "2632"]
[BlackElo "2455"]
[TimeControl "180+1"]
[EndTime "15:08:11 PDT"]
[Termination "andrew-blr won by checkmate"]

1. d4 {[%clk 0:03:00.9]} 1... d5 {[%clk 0:03:00.1]} 2. c4 {[%clk 0:02:59.5]}
2... e6 {[%clk 0:03:00.5]} 3. Nc3 {[%clk 0:02:58.9]} 3... c5 {[%clk 0:03:00.9]}
4. cxd5 {[%clk 0:02:58.6]} 4... exd5 {[%clk 0:03:01.8]} 5. Nf3 {[%clk
0:02:58.3]} 5... Nc6 {[%clk 0:03:02.1]} 6. g3 {[%clk 0:02:58.6]} 6... Nf6 {[%clk
0:03:02.5]} 7. Bg2 {[%clk 0:02:59]} 7... cxd4 {[%clk 0:03:03.2]} 8. Nxd4 {[%clk
0:02:58.6]} 8... Bc5 {[%clk 0:03:03.9]} 9. Nxc6 {[%clk 0:02:49.7]} 9... bxc6
{[%clk 0:03:04.8]} 10. O-O {[%clk 0:02:49.7]} 10... O-O {[%clk 0:03:04.6]} 11.
Na4 {[%clk 0:02:48.1]} 11... Bb6 {[%clk 0:03:04.2]} 12. b3 {[%clk 0:02:44.2]}
12... Re8 {[%clk 0:03:04.1]} 13. Bb2 {[%clk 0:02:44]} 13... Ba6 {[%clk
0:03:03.3]} 14. Bf3 {[%clk 0:02:39.6]} 14... Ne4 {[%clk 0:02:40.5]} 15. Rc1
{[%clk 0:02:32.8]} 15... Rc8 {[%clk 0:02:36.9]} 16. Nxb6 {[%clk 0:02:29.5]}
16... axb6 {[%clk 0:02:36.3]} 17. Qd4 {[%clk 0:02:24.8]} 17... Nf6 {[%clk
0:02:19.5]} 18. Rfe1 {[%clk 0:01:59.5]} 18... c5 {[%clk 0:02:02.8]} 19. Qa4
{[%clk 0:01:56.5]} 19... Bb7 {[%clk 0:01:58.9]} 20. Qa7 {[%clk 0:01:41.4]} 20...
Qc7 {[%clk 0:01:52.6]} 21. Qa4 {[%clk 0:01:18.2]} 21... d4 {[%clk 0:01:47.2]}
22. Qc4 {[%clk 0:01:08.6]} 22... Bxf3 {[%clk 0:01:44.2]} 23. exf3 {[%clk
0:01:08.4]} 23... Qd7 {[%clk 0:01:34.4]} 24. a4 {[%clk 0:01:00.8]} 24... Qf5
{[%clk 0:01:24.3]} 25. Kg2 {[%clk 0:00:58.7]} 25... h6 {[%clk 0:01:17.4]} 26. b4
{[%clk 0:00:36.5]} 26... Rxe1 {[%clk 0:00:53.7]} 27. Rxe1 {[%clk 0:00:35.5]}
27... Qd5 {[%clk 0:00:53.6]} 28. Rc1 {[%clk 0:00:31.6]} 28... Rd8 {[%clk
0:00:47.7]} 29. bxc5 {[%clk 0:00:30.9]} 29... bxc5 {[%clk 0:00:37]} 30. Qxc5
{[%clk 0:00:30.9]} 30... Qxc5 {[%clk 0:00:21.4]} 31. Rxc5 {[%clk 0:00:30.5]}
31... d3 {[%clk 0:00:21.9]} 32. Rc1 {[%clk 0:00:30.5]} 32... Nd7 {[%clk
0:00:18.4]} 33. Rd1 {[%clk 0:00:21.7]} 33... Nc5 {[%clk 0:00:18]} 34. a5 {[%clk
0:00:21.5]} 34... Nb3 {[%clk 0:00:17.9]} 35. Bc3 {[%clk 0:00:21]} 35... d2
{[%clk 0:00:17.9]} 36. a6 {[%clk 0:00:19.8]} 36... Ra8 {[%clk 0:00:13.7]} 37.
Bxd2 {[%clk 0:00:19.5]} 37... Rxa6 {[%clk 0:00:08]} 38. Bc3 {[%clk 0:00:18.7]}
38... Rc6 {[%clk 0:00:07.9]} 39. Rd8+ {[%clk 0:00:17.8]} 39... Kh7 {[%clk
0:00:07.7]} 40. Be5 {[%clk 0:00:17.6]} 40... Nc5 {[%clk 0:00:06.6]} 41. f4
{[%clk 0:00:14.8]} 41... Ne6 {[%clk 0:00:06.3]} 42. Rd7 {[%clk 0:00:13.8]} 42...
Kg8 {[%clk 0:00:06.1]} 43. f5 {[%clk 0:00:13.3]} 43... Ng5 {[%clk 0:00:04.5]}
44. h4 {[%clk 0:00:11.5]} 44... Ne4 {[%clk 0:00:04.4]} 45. Bd4 {[%clk
0:00:09.7]} 45... Rc2 {[%clk 0:00:04]} 46. Kf3 {[%clk 0:00:09]} 46... Nc3 {[%clk
0:00:01.6]} 47. f6 {[%clk 0:00:08.1]} 47... g6 {[%clk 0:00:01.6]} 48. Rd8+
{[%clk 0:00:06.8]} 48... Kh7 {[%clk 0:00:02]} 49. Rc8 {[%clk 0:00:04.3]} 49...
Rd2 {[%clk 0:00:02.1]} 50. Bxc3 {[%clk 0:00:03.2]} 50... Rd3+ {[%clk 0:00:02]}
51. Kg2 {[%clk 0:00:03.8]} 51... Rd6 {[%clk 0:00:02.8]} 52. Rc7 {[%clk
0:00:04.1]} 52... h5 {[%clk 0:00:03.7]} 53. Rxf7+ {[%clk 0:00:03.9]} 53... Kh6
{[%clk 0:00:04.6]} 54. Rc7 {[%clk 0:00:03.6]} 54... g5 {[%clk 0:00:05.5]} 55.
hxg5+ {[%clk 0:00:03]} 55... Kxg5 {[%clk 0:00:05.8]} 56. f7 {[%clk 0:00:03.6]}
56... h4 {[%clk 0:00:06.6]} 57. gxh4+ {[%clk 0:00:02.9]} 57... Kg4 {[%clk
0:00:06.9]} 58. f8=Q {[%clk 0:00:03.3]} 58... Rg6 {[%clk 0:00:07.8]} 59. Qf3+
{[%clk 0:00:03.1]} 59... Kxh4+ {[%clk 0:00:07.8]} 60. Kf1 {[%clk 0:00:03]} 60...
Kg5 {[%clk 0:00:08.7]} 61. Rc5+ {[%clk 0:00:03]} 61... Kh6 {[%clk 0:00:09.6]}
62. Qh3# {[%clk 0:00:03.2]} 1-0

[Event "Late-Titled-Tuesday-Blitz-May-28-2024"]
[Site "Chess.com"]
[Date "2024.05.28"]
[Round "6"]
[White "whiteshirt_boi"]
[Black "swayamsm"]
[Result "0-1"]
[WhiteElo "2780"]
[BlackElo "2578"]
[TimeControl "180+1"]
[EndTime "15:08:12 PDT"]
[Termination "swayamsm won by resignation"]

1. e4 {[%clk 0:02:56.6]} 1... e5 {[%clk 0:02:58.4]} 2. Nf3 {[%clk 0:02:56.1]}
2... Nc6 {[%clk 0:02:58.9]} 3. Bc4 {[%clk 0:02:54.5]} 3... Nf6 {[%clk
0:02:58.4]} 4. d3 {[%clk 0:02:53.7]} 4... Be7 {[%clk 0:02:57.8]} 5. O-O {[%clk
0:02:52.4]} 5... O-O {[%clk 0:02:58.4]} 6. a4 {[%clk 0:02:52.9]} 6... d6 {[%clk
0:02:54.9]} 7. h3 {[%clk 0:02:47.9]} 7... Be6 {[%clk 0:02:55]} 8. Nc3 {[%clk
0:02:46.1]} 8... Qd7 {[%clk 0:02:49.2]} 9. Be3 {[%clk 0:02:42.3]} 9... Kh8
{[%clk 0:02:47.3]} 10. Re1 {[%clk 0:02:29.8]} 10... Rae8 {[%clk 0:02:42.2]} 11.
Bg5 {[%clk 0:02:22.2]} 11... Ng8 {[%clk 0:02:40.2]} 12. Nd5 {[%clk 0:02:16.1]}
12... Nd4 {[%clk 0:02:29.8]} 13. Nxe7 {[%clk 0:01:50.3]} 13... Nxf3+ {[%clk
0:02:22.1]} 14. Qxf3 {[%clk 0:01:49]} 14... Nxe7 {[%clk 0:02:22.2]} 15. a5
{[%clk 0:01:38.3]} 15... Ng6 {[%clk 0:02:10.9]} 16. Be3 {[%clk 0:01:31.4]} 16...
a6 {[%clk 0:02:08.5]} 17. Qg3 {[%clk 0:01:23.5]} 17... f5 {[%clk 0:02:06.2]} 18.
exf5 {[%clk 0:01:21.1]} 18... Rxf5 {[%clk 0:02:06]} 19. Bxe6 {[%clk 0:01:18.9]}
19... Qxe6 {[%clk 0:02:05.6]} 20. Qg4 {[%clk 0:01:17.5]} 20... Qf7 {[%clk
0:01:55.5]} 21. Ra4 {[%clk 0:01:15.9]} 21... c5 {[%clk 0:01:48.1]} 22. b4 {[%clk
0:01:09]} 22... cxb4 {[%clk 0:01:36.3]} 23. Rxb4 {[%clk 0:01:08.7]} 23... Re7
{[%clk 0:01:31.3]} 24. Reb1 {[%clk 0:01:07.2]} 24... h5 {[%clk 0:01:29.9]} 25.
Qc4 {[%clk 0:01:03.6]} 25... Qxc4 {[%clk 0:01:19.7]} 26. Rxc4 {[%clk 0:01:04.5]}
26... Kh7 {[%clk 0:01:15.3]} 27. f3 {[%clk 0:00:59.2]} 27... Rd7 {[%clk
0:01:13.2]} 28. Rc8 {[%clk 0:00:55.4]} 28... Rff7 {[%clk 0:01:11]} 29. c4 {[%clk
0:00:51.1]} 29... Ne7 {[%clk 0:01:10.3]} 30. Ra8 {[%clk 0:00:46.9]} 30... Nc6
{[%clk 0:01:10.3]} 31. Bb6 {[%clk 0:00:47.5]} 31... d5 {[%clk 0:01:10.3]} 32.
Re1 {[%clk 0:00:43.2]} 32... dxc4 {[%clk 0:01:02.2]} 33. dxc4 {[%clk 0:00:44.1]}
33... Rd2 {[%clk 0:00:58.3]} 34. Re8 {[%clk 0:00:36.5]} 34... Rc2 {[%clk
0:00:57.5]} 35. Re4 {[%clk 0:00:36.5]} 35... Rd7 {[%clk 0:00:55.4]} 36. Be3
{[%clk 0:00:30.2]} 36... Kg6 {[%clk 0:00:50]} 37. Re6+ {[%clk 0:00:29.6]} 37...
Kf7 {[%clk 0:00:50]} 38. R6xe5 {[%clk 0:00:29.1]} 38... Nxe5 {[%clk 0:00:49.3]}
39. Rxe5 {[%clk 0:00:30]} 39... Rd1+ {[%clk 0:00:44.4]} 40. Kh2 {[%clk
0:00:29.8]} 40... Re1 {[%clk 0:00:44.5]} 41. Kg3 {[%clk 0:00:17.7]} 41... h4+
{[%clk 0:00:40.5]} 42. Kf4 {[%clk 0:00:17.5]} 42... Rxg2 {[%clk 0:00:37.5]} 43.
Rf5+ {[%clk 0:00:17.9]} 43... Ke6 {[%clk 0:00:36.2]} 44. Re5+ {[%clk 0:00:18]}
44... Kd7 {[%clk 0:00:35.2]} 45. Rd5+ {[%clk 0:00:18.5]} 45... Ke6 {[%clk
0:00:34.2]} 46. Re5+ {[%clk 0:00:18.7]} 46... Kf7 {[%clk 0:00:34.4]} 47. Rf5+
{[%clk 0:00:19.2]} 47... Kg6 {[%clk 0:00:33.3]} 48. Rd5 {[%clk 0:00:18.8]} 48...
Kh7 {[%clk 0:00:27.2]} 49. Bd4 {[%clk 0:00:17.7]} 49... Rg3 {[%clk 0:00:22.9]}
50. Rh5+ {[%clk 0:00:17.7]} 50... Kg6 {[%clk 0:00:22.8]} 51. Rxh4 {[%clk
0:00:18]} 51... Rg2 {[%clk 0:00:23.1]} 52. Rg4+ {[%clk 0:00:16.4]} 52... Rxg4+
{[%clk 0:00:22.2]} 53. hxg4 {[%clk 0:00:17.3]} 53... Rc1 {[%clk 0:00:21.9]} 54.
c5 {[%clk 0:00:17]} 54... Rc4 {[%clk 0:00:21.9]} 55. Ke5 {[%clk 0:00:16.9]}
55... Kf7 {[%clk 0:00:16.7]} 56. g5 {[%clk 0:00:13.8]} 56... Ra4 {[%clk
0:00:14.7]} 57. Bc3 {[%clk 0:00:13.8]} 57... Ra3 {[%clk 0:00:15]} 58. Kd4 {[%clk
0:00:13.3]} 58... g6 {[%clk 0:00:14.9]} 59. Kc4 {[%clk 0:00:11.7]} 59... Ke6
{[%clk 0:00:15.4]} 60. f4 {[%clk 0:00:12.3]} 60... Kf5 {[%clk 0:00:15]} 61. Kb4
{[%clk 0:00:13]} 61... Ra2 {[%clk 0:00:14.8]} 62. Be5 {[%clk 0:00:13.7]} 62...
Ke4 {[%clk 0:00:12.6]} 63. Bd6 {[%clk 0:00:14.2]} 63... Kd5 {[%clk 0:00:12]} 64.
Be7 {[%clk 0:00:12.1]} 64... Rb2+ {[%clk 0:00:11.7]} 65. Kc3 {[%clk 0:00:12]}
65... Rb5 {[%clk 0:00:12]} 66. f5 {[%clk 0:00:09.4]} 66... gxf5 {[%clk
0:00:10.9]} 67. g6 {[%clk 0:00:09.3]} 67... Ke6 {[%clk 0:00:11.6]} 68. g7 {[%clk
0:00:10]} 68... Kf7 {[%clk 0:00:12.5]} 69. Bf8 {[%clk 0:00:06.9]} 69... Rxa5
{[%clk 0:00:12.5]} 70. Kd4 {[%clk 0:00:06.6]} 70... Ra4+ {[%clk 0:00:11.8]} 71.
Ke5 {[%clk 0:00:07.2]} 71... f4 {[%clk 0:00:12.3]} 0-1

[Event "Late-Titled-Tuesday-Blitz-May-28-2024"]
[Site "Chess.com"]
[Date "2024.05.28"]
[Round "6"]
[White "StoreySniper"]
[Black "Meri-Arabidze"]
[Result "1-0"]
[WhiteElo "2545"]
[BlackElo "2686"]
[TimeControl "180+1"]
[EndTime "15:08:12 PDT"]
[Termination "StoreySniper won on time"]

1. c4 {[%clk 0:03:00.9]} 1... e6 {[%clk 0:02:58.8]} 2. g3 {[%clk 0:03:00.8]}
2... Nf6 {[%clk 0:02:58.8]} 3. Bg2 {[%clk 0:03:01.4]} 3... d5 {[%clk 0:02:59.5]}
4. d4 {[%clk 0:02:59.7]} 4... Be7 {[%clk 0:02:59]} 5. Nf3 {[%clk 0:02:59.4]}
5... O-O {[%clk 0:02:59.7]} 6. O-O {[%clk 0:02:58.2]} 6... dxc4 {[%clk
0:02:58.4]} 7. Qc2 {[%clk 0:02:58.2]} 7... b6 {[%clk 0:02:58.8]} 8. Qxc4 {[%clk
0:02:56.6]} 8... Bb7 {[%clk 0:02:58.4]} 9. Nc3 {[%clk 0:02:52.9]} 9... Nbd7
{[%clk 0:02:58.2]} 10. Bg5 {[%clk 0:02:52.1]} 10... c5 {[%clk 0:02:57.6]} 11.
Rfd1 {[%clk 0:02:41.2]} 11... Rc8 {[%clk 0:02:57.2]} 12. Qa4 {[%clk 0:02:36]}
12... Bc6 {[%clk 0:02:44.8]} 13. Qb3 {[%clk 0:02:22.3]} 13... Qc7 {[%clk
0:02:41.4]} 14. Rac1 {[%clk 0:02:13.1]} 14... Qb7 {[%clk 0:02:35.7]} 15. e4
{[%clk 0:02:06.4]} 15... h6 {[%clk 0:02:25.3]} 16. Bxf6 {[%clk 0:02:06.5]} 16...
Nxf6 {[%clk 0:02:23.3]} 17. d5 {[%clk 0:02:01.5]} 17... exd5 {[%clk 0:02:22.8]}
18. exd5 {[%clk 0:02:01.8]} 18... Bd7 {[%clk 0:02:16.9]} 19. d6 {[%clk
0:02:00.9]} 19... Bd8 {[%clk 0:01:44.9]} 20. Ne5 {[%clk 0:01:59.6]} 20... Qb8
{[%clk 0:01:45.2]} 21. Nxd7 {[%clk 0:01:45.9]} 21... Nxd7 {[%clk 0:01:45.5]} 22.
Bh3 {[%clk 0:01:46.1]} 22... Qb7 {[%clk 0:01:41.9]} 23. Qb5 {[%clk 0:01:29.3]}
23... Ne5 {[%clk 0:01:36.4]} 24. Bxc8 {[%clk 0:01:15.8]} 24... Nf3+ {[%clk
0:01:33.2]} 25. Kh1 {[%clk 0:01:15.8]} 25... Qxc8 {[%clk 0:01:33.1]} 26. Qe2
{[%clk 0:01:08.3]} 26... Nd4 {[%clk 0:01:27.7]} 27. Qe4 {[%clk 0:01:03.7]} 27...
Bg5 {[%clk 0:01:11.8]} 28. f4 {[%clk 0:01:00.7]} 28... Bf6 {[%clk 0:00:30.3]}
29. Nd5 {[%clk 0:00:55.9]} 29... Qd8 {[%clk 0:00:30.6]} 30. Nxf6+ {[%clk
0:00:39]} 30... Qxf6 {[%clk 0:00:31.5]} 31. Qe5 {[%clk 0:00:38.7]} 31... Rd8
{[%clk 0:00:26.8]} 32. Qxf6 {[%clk 0:00:32.8]} 32... gxf6 {[%clk 0:00:26.7]} 33.
b4 {[%clk 0:00:33.3]} 33... Ne6 {[%clk 0:00:24.3]} 34. bxc5 {[%clk 0:00:31.3]}
34... Nxc5 {[%clk 0:00:20.5]} 35. Rd5 {[%clk 0:00:28.9]} 35... Kf8 {[%clk
0:00:18.8]} 36. Re1 {[%clk 0:00:27.5]} 36... Rd7 {[%clk 0:00:12]} 37. Kg2 {[%clk
0:00:26.9]} 37... Nb7 {[%clk 0:00:09.6]} 38. Re7 {[%clk 0:00:22.9]} 38... Rxe7
{[%clk 0:00:08.6]} 39. dxe7+ {[%clk 0:00:23.5]} 39... Kxe7 {[%clk 0:00:09.5]}
40. Rh5 {[%clk 0:00:23.7]} 40... Nd6 {[%clk 0:00:05.9]} 41. Rxh6 {[%clk
0:00:23.3]} 41... a5 {[%clk 0:00:05.9]} 42. Rh8 {[%clk 0:00:20.3]} 42... b5
{[%clk 0:00:05.9]} 43. Ra8 {[%clk 0:00:17.7]} 43... Nc4 {[%clk 0:00:05.8]} 44.
h4 {[%clk 0:00:17.5]} 44... f5 {[%clk 0:00:05.7]} 45. h5 {[%clk 0:00:17.1]}
45... Kf6 {[%clk 0:00:05.9]} 46. Rg8 {[%clk 0:00:14.3]} 46... Ne3+ {[%clk
0:00:03.8]} 47. Kh3 {[%clk 0:00:13.8]} 47... Ng4 {[%clk 0:00:03.9]} 48. Ra8
{[%clk 0:00:09.8]} 48... a4 {[%clk 0:00:03.8]} 49. Ra5 {[%clk 0:00:10.1]} 49...
Nf2+ {[%clk 0:00:02.2]} 50. Kh4 {[%clk 0:00:10.3]} 50... Ne4 {[%clk 0:00:01.6]}
51. Rxb5 {[%clk 0:00:10]} 51... Nd2 {[%clk 0:00:01.5]} 52. Rb6+ {[%clk
0:00:09.6]} 52... Kg7 {[%clk 0:00:01.9]} 53. Ra6 {[%clk 0:00:08.5]} 53... Nf3+
{[%clk 0:00:01.9]} 54. Kh3 {[%clk 0:00:08.9]} 54... Nd4 {[%clk 0:00:01]} 55. h6+
{[%clk 0:00:08.8]} 55... Kh7 {[%clk 0:00:01.1]} 56. Rxa4 {[%clk 0:00:09.2]}
56... Ne6 {[%clk 0:00:01.8]} 57. Ra7 {[%clk 0:00:08.6]} 57... Kxh6 {[%clk
0:00:02.4]} 58. Rxf7 {[%clk 0:00:09.1]} 58... Kg6 {[%clk 0:00:02]} 59. Ra7
{[%clk 0:00:08.1]} 59... Nd4 {[%clk 0:00:02.6]} 60. Ra6+ {[%clk 0:00:08.5]}
60... Kh5 {[%clk 0:00:02.8]} 61. a4 {[%clk 0:00:08.1]} 61... Ne2 {[%clk
0:00:02.5]} 62. a5 {[%clk 0:00:08.2]} 62... Ng1+ {[%clk 0:00:02.2]} 63. Kg2
{[%clk 0:00:07.6]} 63... Ne2 {[%clk 0:00:03.1]} 64. Ra8 {[%clk 0:00:07.9]} 64...
Kg4 {[%clk 0:00:03]} 65. a6 {[%clk 0:00:07.5]} 65... Nd4 {[%clk 0:00:02.6]} 66.
Rg8+ {[%clk 0:00:07.6]} 66... Kh5 {[%clk 0:00:02.7]} 67. a7 {[%clk 0:00:07.9]}
1-0

[Event "Late-Titled-Tuesday-Blitz-May-28-2024"]
[Site "Chess.com"]
[Date "2024.05.28"]
[Round "6"]
[White "ImportedItalianMaple"]
[Black "dozer80"]
[Result "1/2-1/2"]
[WhiteElo "2534"]
[BlackElo "2691"]
[TimeControl "180+1"]
[EndTime "15:08:13 PDT"]
[Termination "Game drawn by repetition"]

1. e4 {[%clk 0:03:00.9]} 1... e5 {[%clk 0:02:58.8]} 2. Nf3 {[%clk 0:03:01.1]}
2... d6 {[%clk 0:02:59.2]} 3. d4 {[%clk 0:02:56.2]} 3... Nd7 {[%clk 0:02:59]} 4.
Nc3 {[%clk 0:02:51.1]} 4... Ngf6 {[%clk 0:02:57.4]} 5. Bc4 {[%clk 0:02:50.1]}
5... Be7 {[%clk 0:02:57.5]} 6. O-O {[%clk 0:02:49.8]} 6... O-O {[%clk
0:02:57.5]} 7. Re1 {[%clk 0:02:49.6]} 7... c6 {[%clk 0:02:53.2]} 8. a4 {[%clk
0:02:49.9]} 8... a5 {[%clk 0:02:52.8]} 9. h3 {[%clk 0:02:44.8]} 9... Qc7 {[%clk
0:02:47.4]} 10. Be3 {[%clk 0:02:42]} 10... h6 {[%clk 0:02:36.1]} 11. Ba2 {[%clk
0:02:24]} 11... Re8 {[%clk 0:02:31]} 12. Nh4 {[%clk 0:02:23.4]} 12... Nf8 {[%clk
0:02:08.4]} 13. Qf3 {[%clk 0:02:16.1]} 13... Ne6 {[%clk 0:01:58.8]} 14. dxe5
{[%clk 0:02:09.8]} 14... dxe5 {[%clk 0:01:59.7]} 15. Nf5 {[%clk 0:02:07.5]}
15... Kh7 {[%clk 0:01:45.7]} 16. Qg3 {[%clk 0:01:39.8]} 16... Nh5 {[%clk
0:01:40.4]} 17. Qg4 {[%clk 0:01:33.1]} 17... g6 {[%clk 0:01:22.4]} 18. Bxh6
{[%clk 0:01:11.1]} 18... Bc5 {[%clk 0:00:52.6]} 19. Be3 {[%clk 0:01:00.3]} 19...
Bxe3 {[%clk 0:00:51.6]} 20. fxe3 {[%clk 0:00:54.5]} 20... Neg7 {[%clk
0:00:49.1]} 21. Qh4 {[%clk 0:00:37.7]} 21... gxf5 {[%clk 0:00:47]} 22. g4 {[%clk
0:00:38.3]} 22... fxg4 {[%clk 0:00:41.2]} 23. hxg4 {[%clk 0:00:36.9]} 23... Rg8
{[%clk 0:00:29]} 24. Kf2 {[%clk 0:00:29.5]} 24... Be6 {[%clk 0:00:17.5]} 25.
Bxe6 {[%clk 0:00:23.9]} 25... fxe6 {[%clk 0:00:16.9]} 26. gxh5 {[%clk
0:00:23.3]} 26... Raf8+ {[%clk 0:00:16.3]} 27. Ke2 {[%clk 0:00:23.1]} 27... Qb6
{[%clk 0:00:15.7]} 28. Qg5 {[%clk 0:00:15.8]} 28... Nf5 {[%clk 0:00:12.3]} 29.
Qxg8+ {[%clk 0:00:06.8]} 29... Kxg8 {[%clk 0:00:12.4]} 30. exf5 {[%clk
0:00:07.7]} 30... Qxb2 {[%clk 0:00:12]} 31. Rg1+ {[%clk 0:00:07.7]} 31... Kh7
{[%clk 0:00:11.7]} 32. Ne4 {[%clk 0:00:06.6]} 32... Qxc2+ {[%clk 0:00:12.1]} 33.
Nd2 {[%clk 0:00:07.3]} 33... Rxf5 {[%clk 0:00:11.8]} 34. Rg2 {[%clk 0:00:05.3]}
34... e4 {[%clk 0:00:11.9]} 35. Rag1 {[%clk 0:00:05.5]} 35... Qd3+ {[%clk
0:00:11.9]} 36. Ke1 {[%clk 0:00:06]} 36... Qxe3+ {[%clk 0:00:12.3]} 37. Kd1
{[%clk 0:00:06.8]} 37... Qd3 {[%clk 0:00:07]} 38. Rg7+ {[%clk 0:00:06.5]} 38...
Kh6 {[%clk 0:00:07.4]} 39. Rg8 {[%clk 0:00:03.7]} 39... Qd4 {[%clk 0:00:06.6]}
40. R1g6+ {[%clk 0:00:02.7]} 40... Kxh5 {[%clk 0:00:06.8]} 41. Rg2 {[%clk
0:00:03.4]} 41... Rf4 {[%clk 0:00:06.6]} 42. Ke2 {[%clk 0:00:02.2]} 42... e3
{[%clk 0:00:05.6]} 43. R2g5+ {[%clk 0:00:02.5]} 43... Kh4 {[%clk 0:00:05.5]} 44.
Nf3+ {[%clk 0:00:03]} 44... Rxf3 {[%clk 0:00:06]} 45. Kxf3 {[%clk 0:00:03.9]}
45... e2 {[%clk 0:00:05]} 46. Rg1 {[%clk 0:00:03.3]} 46... e1=N+ {[%clk
0:00:03.8]} 47. Rxe1 {[%clk 0:00:03]} 47... Qf6+ {[%clk 0:00:04.5]} 48. Ke2
{[%clk 0:00:02.9]} 48... Qe5+ {[%clk 0:00:04.8]} 49. Kf1 {[%clk 0:00:03.2]}
49... Qf5+ {[%clk 0:00:04.5]} 50. Ke2 {[%clk 0:00:03.5]} 50... Qe4+ {[%clk
0:00:04.5]} 51. Kd1 {[%clk 0:00:03.9]} 51... Qxa4+ {[%clk 0:00:04.5]} 52. Kd2
{[%clk 0:00:03.9]} 52... Qb4+ {[%clk 0:00:04.7]} 53. Kd1 {[%clk 0:00:04.5]}
53... Qd4+ {[%clk 0:00:04.3]} 54. Ke2 {[%clk 0:00:04.5]} 54... Qe4+ {[%clk
0:00:04.1]} 55. Kd1 {[%clk 0:00:05.2]} 55... Qd5+ {[%clk 0:00:03.8]} 56. Ke2
{[%clk 0:00:05.7]} 56... Qe5+ {[%clk 0:00:03.4]} 57. Kd1 {[%clk 0:00:06.1]}
57... Qd5+ {[%clk 0:00:03.5]} 58. Ke2 {[%clk 0:00:06.7]} 58... Qc4+ {[%clk
0:00:03.7]} 59. Kd1 {[%clk 0:00:07.4]} 59... Qd4+ {[%clk 0:00:03.7]} 60. Ke2
{[%clk 0:00:08.1]} 60... Qe4+ {[%clk 0:00:03.1]} 61. Kd1 {[%clk 0:00:08.8]}
61... Qd3+ {[%clk 0:00:03.3]} 62. Kc1 {[%clk 0:00:08.9]} 62... Qc3+ {[%clk
0:00:03.5]} 63. Kd1 {[%clk 0:00:09.6]} 63... Qa1+ {[%clk 0:00:03.8]} 64. Kd2
{[%clk 0:00:09.9]} 64... Qb2+ {[%clk 0:00:03.7]} 65. Kd1 {[%clk 0:00:10.6]}
65... Qb3+ {[%clk 0:00:03.8]} 66. Kd2 {[%clk 0:00:11.2]} 66... Qb4+ {[%clk
0:00:04.1]} 67. Kd1 {[%clk 0:00:11.7]} 67... Qb1+ {[%clk 0:00:04.1]} 68. Kd2
{[%clk 0:00:12.2]} 68... Qb2+ {[%clk 0:00:04.6]} 69. Kd1 {[%clk 0:00:12.7]}
69... Qb3+ {[%clk 0:00:04.3]} 70. Kd2 {[%clk 0:00:13.2]} 70... Qd5+ {[%clk
0:00:04.5]} 71. Kc1 {[%clk 0:00:13.1]} 71... Qc4+ {[%clk 0:00:04.4]} 72. Kd1
{[%clk 0:00:13.7]} 72... Qd3+ {[%clk 0:00:04.7]} 73. Kc1 {[%clk 0:00:14.3]}
73... Qc3+ {[%clk 0:00:05.1]} 74. Kd1 {[%clk 0:00:15]} 74... Qb3+ {[%clk
0:00:05.4]} 1/2-1/2